bitfinex/quotes_SOLUSD_20250222
["timestamp","ask_amount","ask_price","bid_price","bid_amount"]
[1740234734827,23.6090677,173.89,173.87,0.063]
[1740234735210,17.8583677,173.88,173.87,0.063]
[1740234736314,23.6093677,173.88,173.87,0.063]
[1740234739228,17.8583677,173.88,173.87,0.063]
[1740234740610,99.0583677,173.9,173.87,0.063]
[1740234744637,81.2,173.92,173.87,17.9213677]
[1740234744817,69.03,173.94,173.87,17.9213677]
[1740234744818,0.03,173.94,173.91,17.8583677]
[1740234745016,0.03,173.94,173.92,17.8583677]
[1740234746244,0.03,173.94,173.91,5.7499]
[1740234748334,0.03,173.94,173.89,23.6090677]
[1740234749819,0.03,173.94,173.89,105.1090677]
[1740234750324,0.03,173.94,173.91,17.8583677]
[1740234750539,0.03,173.94,173.91,99.3583677]
[1740234751425,0.03,173.94,173.92,5.7497]
[1740234755443,0.03,173.94,173.93,17.8583677]
[1740234756957,0.03,173.94,173.93,111.1921677]
[1740234757648,0.03,173.94,173.93,93.3338]
[1740234757845,0.03,173.94,173.93,87.2494]
[1740234768968,0.03,173.94,173.93,98.68852071]
[1740234769951,0.03,173.94,173.93,87.2494]
[1740234772966,0.03,173.94,173.92,0.063]
[1740234776761,11.46912071,173.94,173.92,0.063]
[1740234777977,17.21822071,173.94,173.92,0.063]
[1740234778170,11.43912071,173.93,173.92,0.063]
[1740234779352,17.18852071,173.93,173.92,0.063]
[1740234780074,35.83816957,173.93,173.92,0.063]
[1740234782870,36.83816957,173.93,173.92,0.063]
[1740234784180,105.83816957,173.93,173.92,0.063]
[1740234784677,36.83816957,173.93,173.87,0.063]
[1740234784882,75.84525241,173.88,173.87,0.063]
[1740234785378,30.08876957,173.88,173.87,0.063]
[1740234786296,76.84525241,173.88,173.87,0.063]
[1740234786583,84.69615241,173.88,173.87,0.063]
[1740234786779,90.44715241,173.88,173.87,0.063]
[1740234787084,89.44715241,173.88,173.87,0.063]
[1740234788369,25.04102071,173.88,173.87,0.063]
[1740234788568,11.43912071,173.89,173.87,0.063]
[1740234788772,31.43912071,173.88,173.87,0.063]
[1740234790156,37.19012071,173.88,173.87,0.063]
[1740234791889,31.43912071,173.88,173.87,0.063]
[1740234792181,20.0,173.88,173.87,0.063]
[1740234792495,112.63912071,173.89,173.87,0.063]
[1740234793282,11.43912071,173.88,173.87,0.063]
[1740234794061,35.83976957,173.88,173.87,0.063]
[1740234794479,11.43912071,173.88,173.87,0.063]
[1740234794860,17.19012071,173.88,173.87,0.063]
[1740234795583,11.43912071,173.88,173.87,0.063]
[1740234795792,92.63912071,173.89,173.87,0.063]
[1740234798667,99.09275452,173.89,173.87,0.063]
[1740234799396,104.84355452,173.89,173.87,0.063]
[1740234799571,17.89275452,173.88,173.87,0.063]
[1740234800495,42.29340338,173.88,173.87,0.063]
[1740234800697,60.1861579,173.88,173.87,0.063]
[1740234801790,61.1861579,173.88,173.87,0.063]
[1740234802193,130.1861579,173.88,173.87,0.063]
[1740234802489,20.0,173.85,173.81,0.063]
[1740234802677,61.1861579,173.88,173.81,0.063]
[1740234802678,17.89275452,173.82,173.81,0.063]
[1740234803516,36.54240338,173.82,173.81,0.063]
[1740234804388,42.29540338,173.82,173.81,0.063]
[1740234808278,43.29540338,173.82,173.81,0.063]
[1740234810795,44.29540338,173.82,173.81,0.0001]
[1740234810991,19.64964886,173.81,173.8,0.0001]
[1740234811309,58.0479579,173.81,173.8,0.0001]
[1740234811711,58.0479579,173.81,173.74,0.063]
[1740234811712,37.89275452,173.75,173.74,0.063]
[1740234812216,56.54240338,173.75,173.74,0.063]
[1740234813111,62.29770338,173.75,173.74,0.063]
[1740234815294,63.29770338,173.75,173.74,0.063]
[1740234816613,62.29770338,173.75,173.74,0.063]
[1740234817121,42.13275452,173.75,173.74,0.063]
[1740234818514,20.0,173.75,173.74,0.063]
[1740234818688,22.13275452,173.77,173.74,0.063]
[1740234820029,17.89275452,173.76,173.74,0.063]
[1740234821795,17.89275452,173.75,173.74,0.063]
[1740234824119,99.09275452,173.75,173.74,0.063]
[1740234824303,104.84805452,173.75,173.74,0.063]
[1740234827132,123.49770338,173.75,173.74,0.063]
[1740234828428,43.29770338,173.75,173.74,0.0001]
[1740234828624,20.0,173.71,173.69,0.063]
[1740234828801,103.33275452,173.7,173.69,0.063]
[1740234829003,109.08975452,173.7,173.69,0.063]
[1740234830000,127.73940338,173.7,173.69,0.063]
[1740234830227,46.53940338,173.7,173.69,0.063]
[1740234830803,64.4321579,173.7,173.69,0.063]
[1740234833546,20.0,173.67,173.62,0.063]
[1740234833840,18.64964886,173.69,173.62,0.063]
[1740234833841,17.89275452,173.64,173.62,0.063]
[1740234835242,17.89275452,173.65,173.62,0.063]
[1740234836123,17.89275452,173.66,173.62,0.063]
[1740234836544,37.89275452,173.66,173.62,0.063]
[1740234837940,20.0,173.66,173.62,0.063]
[1740234838145,17.89275452,173.68,173.62,0.063]
[1740234838526,17.89275452,173.67,173.62,0.063]
[1740234839241,99.09275452,173.68,173.62,0.063]
[1740234839441,99.09275452,173.68,173.62,5.8227]
[1740234841244,17.89275452,173.67,173.62,5.8227]
[1740234841450,17.89275452,173.64,173.62,0.063]
[1740234843143,23.65175452,173.64,173.62,0.063]
[1740234843349,46.54140338,173.64,173.62,0.063]
[1740234843923,46.54140338,173.64,173.58,0.063]
[1740234843924,20.0,173.6,173.58,0.063]
[1740234844125,37.89275452,173.59,173.56,0.063]
[1740234844464,17.89275452,173.57,173.56,0.063]
[1740234845252,23.65405452,173.57,173.56,0.063]
[1740234845454,42.30370338,173.57,173.56,0.063]
[1740234847430,36.54240338,173.57,173.56,0.063]
[1740234851929,17.89275452,173.57,173.56,0.063]
[1740234852134,20.0,173.57,173.56,0.063]
[1740234852835,4.28,173.6,173.56,0.063]
[1740234853058,4.28,173.6,173.56,5.8246]
[1740234855280,86.89275452,173.62,173.56,5.8246]
[1740234855774,86.89275452,173.62,173.56,0.063]
[1740234855775,17.89275452,173.61,173.56,0.063]
[1740234856676,17.89275452,173.6,173.56,0.063]
[1740234856876,99.09275452,173.58,173.56,0.063]
[1740234857175,22.17275452,173.57,173.56,0.063]
[1740234859194,27.93405452,173.57,173.56,0.063]
[1740234859997,115.58370338,173.57,173.56,0.063]
[1740234862297,91.17275452,173.57,173.56,0.063]
[1740234863369,115.58370338,173.57,173.56,0.063]
[1740234867597,19.64964886,173.56,173.54,0.063]
[1740234867768,105.54240338,173.55,173.54,0.063]
[1740234867967,106.54240338,173.55,173.54,0.063]
[1740234868188,105.54240338,173.55,173.54,0.063]
[1740234868492,18.64964886,173.5,173.46,0.063]
[1740234868790,4.28,173.49,173.46,0.063]
[1740234868994,22.17275452,173.49,173.46,0.063]
[1740234869188,17.89275452,173.48,173.46,0.063]
[1740234870466,99.09275452,173.47,173.46,0.063]
[1740234872293,81.2,173.47,173.46,0.063]
[1740234873176,123.50700338,173.47,173.46,0.063]
[1740234873993,42.30700338,173.47,173.46,0.063]
[1740234876389,43.30700338,173.47,173.46,0.063]
[1740234877606,44.30700338,173.47,173.46,0.063]
[1740234879604,44.30700338,173.47,173.46,0.0001]
[1740234882185,20.0,173.43,173.42,0.063]
[1740234882498,60.80240338,173.43,173.42,0.063]
[1740234882799,78.6951579,173.43,173.42,0.063]
[1740234884393,66.56840338,173.43,173.42,0.063]
[1740234885108,67.56840338,173.43,173.42,0.063]
[1740234885493,88.0361579,173.43,173.42,0.0001]
[1740234887304,19.64964886,173.41,173.4,0.0001]
[1740234887510,38.54240338,173.41,173.4,0.0001]
[1740234888584,44.30900338,173.41,173.4,0.0001]
[1740234889509,44.30900338,173.41,173.38,0.0001]
[1740234889510,1.0,173.39,173.38,0.0001]
[1740234889687,37.54240338,173.39,173.38,0.0001]
[1740234890905,43.30970338,173.39,173.38,0.0001]
[1740234892989,46.58970338,173.39,173.38,0.0001]
[1740234897996,46.58970338,173.39,173.38,0.0001]
[1740234904006,17.89275452,173.41,173.38,0.0001]
[1740234904227,4.28,173.4,173.38,0.0001]
[1740234904527,18.64964886,173.41,173.38,0.0001]
[1740234904835,20.0,173.4,173.38,0.0001]
[1740234905136,4.28,173.41,173.38,0.0001]
[1740234905726,81.263,173.42,173.39,11.51293513]
[1740234905913,81.263,173.42,173.4,11.51293513]
[1740234906111,81.263,173.42,173.39,11.51293513]
[1740234906616,81.263,173.42,173.39,17.98396925]
[1740234907017,0.063,173.42,173.4,17.98396925]
[1740234907329,0.063,173.42,173.41,17.98396925]
[1740234907638,0.063,173.42,173.4,17.98396925]
[1740234907830,0.063,173.42,173.41,25.89916925]
[1740234909731,0.063,173.42,173.41,31.66576925]
[1740234912050,0.063,173.42,173.41,7.9152]
[1740234912204,0.063,173.42,173.38,0.0001]
[1740234912606,0.063,173.42,173.38,5.7677]
[1740234912805,0.063,173.42,173.38,0.0001]
[1740234913013,0.063,173.42,173.38,23.75156925]
[1740234914830,0.063,173.42,173.4,17.98396925]
[1740234915017,0.063,173.42,173.41,17.98396925]
[1740234915416,0.063,173.42,173.4,17.98396925]
[1740234916131,0.063,173.42,173.41,24.17106925]
[1740234916310,19.49946925,173.53,173.44,20.0]
[1740234916311,81.2,173.52,173.44,20.0]
[1740234916510,81.2,173.52,173.48,17.98396925]
[1740234916713,81.2,173.52,173.47,17.98396925]
[1740234917013,81.2,173.52,173.48,17.98396925]
[1740234917211,81.2,173.52,173.49,24.17106925]
[1740234917425,0.03,173.54,173.49,24.17106925]
[1740234917809,0.03,173.54,173.49,6.1871]
[1740234918014,17.98396925,173.53,173.46,17.98396925]
[1740234918920,18.01396925,173.54,173.48,17.98396925]
[1740234919122,18.01396925,173.54,173.45,5.7653]
[1740234919123,0.03,173.54,173.49,17.98396925]
[1740234919418,17.98396925,173.53,173.46,17.98396925]
[1740234919726,42.42611811,173.54,173.47,17.98396925]
[1740234919921,4.31,173.54,173.48,17.98396925]
[1740234920749,4.31,173.54,173.5,17.98396925]
[1740234921535,0.03,173.54,173.5,17.98396925]
[1740234921741,0.03,173.54,173.53,17.98396925]
[1740234924209,0.03,173.54,173.53,23.74656925]
[1740234924430,0.03,173.54,173.53,17.98396925]
[1740234924815,0.03,173.54,173.52,17.98396925]
[1740234925019,0.03,173.54,173.51,6.1871]
[1740234925020,0.03,173.54,173.51,24.17106925]
[1740234925536,0.03,173.54,173.51,6.1871]
[1740234925733,18.01396925,173.54,173.47,17.98396925]
[1740234926114,18.01396925,173.54,173.49,17.98396925]
[1740234926115,0.03,173.54,173.49,17.98396925]
[1740234926330,0.03,173.54,173.52,17.98396925]
[1740234927529,0.03,173.54,173.47,81.5]
[1740234927744,0.03,173.54,173.5,17.98396925]
[1740234928519,0.03,173.54,173.52,17.98396925]
[1740234931222,0.03,173.54,173.53,17.98396925]
[1740234931545,0.03,173.54,173.53,24.22076925]
[1740234933852,0.03,173.54,173.51,17.98396925]
[1740234934149,0.03,173.54,173.49,6.301]
[1740234934150,0.03,173.54,173.52,17.98396925]
[1740234934926,0.03,173.54,173.49,24.28496925]
[1740234935235,0.03,173.54,173.49,6.301]
[1740234935432,20.0,173.53,173.48,17.98396925]
[1740234935635,17.98396925,173.5,173.43,7.8099]
[1740234936229,17.98396925,173.5,173.43,6.301]
[1740234936447,17.98396925,173.48,173.42,0.063]
[1740234936658,17.98396925,173.46,173.42,0.063]
[1740234936826,22.32396925,173.48,173.42,0.063]
[1740234938457,17.98396925,173.46,173.42,0.063]
[1740234938642,4.34,173.48,173.42,18.04696925]
[1740234939041,4.34,173.48,173.42,0.063]
[1740234939426,36.63361811,173.47,173.42,0.063]
[1740234940355,18.64964886,173.46,173.42,0.063]
[1740234941867,4.34,173.48,173.42,18.04696925]
[1740234942459,4.34,173.48,173.43,17.98396925]
[1740234942662,18.64964886,173.47,173.42,0.063]
[1740234943048,81.2,173.47,173.42,18.04696925]
[1740234944464,81.2,173.47,173.42,23.81326925]
[1740234947451,81.2,173.47,173.42,5.8293]
[1740234948068,81.2,173.47,173.42,23.81326925]
[1740234948872,4.34,173.48,173.42,23.81326925]
[1740234950365,4.34,173.48,173.42,5.8293]
[1740234952073,38.16871811,173.49,173.42,5.8293]
[1740234952240,6.2896,173.52,173.42,5.8293]
[1740234952241,81.2,173.51,173.45,17.98396925]
[1740234953549,81.2,173.51,173.46,5.765]
[1740234954856,81.2,173.51,173.45,17.98396925]
[1740234955055,81.2,173.51,173.45,23.74926925]
[1740234955543,36.63361811,173.5,173.43,24.46316925]
[1740234956658,5.764,173.49,173.43,24.46316925]
[1740234957883,81.2,173.48,173.43,24.46316925]
[1740234958680,81.2,173.48,173.43,30.22906925]
[1740234958874,81.2,173.51,173.47,17.98396925]
[1740234959248,81.2,173.51,173.48,17.98396925]
[1740234959952,81.2,173.51,173.47,23.74856925]
[1740234960487,81.2,173.51,173.46,17.98396925]
[1740234960680,81.2,173.51,173.47,17.98396925]
[1740234961879,81.2,173.51,173.45,23.74896925]
[1740234962578,81.2,173.51,173.46,17.98396925]
[1740234962800,81.2,173.51,173.47,17.98396925]
[1740234963149,81.23,173.54,173.49,17.98396925]
[1740234963373,81.23,173.54,173.5,17.98396925]
[1740234963779,81.23,173.54,173.52,17.98396925]
[1740234963961,0.03,173.54,173.53,17.98396925]
[1740234964980,0.03,173.54,173.53,23.74656925]
[1740234965368,0.03,173.54,173.53,17.98396925]
[1740234966593,0.03,173.54,173.49,99.48396925]
[1740234966900,0.03,173.54,173.48,17.98396925]
[1740234967098,0.03,173.54,173.51,17.98396925]
[1740234967271,0.03,173.54,173.53,17.98396925]
[1740234968989,0.03,173.54,173.53,23.74656925]
[1740234969388,0.03,173.54,173.53,17.98396925]
[1740234969770,0.03,173.54,173.53,30.22576925]
[1740234969977,0.03,173.54,173.53,111.72576925]
[1740234971881,0.03,173.54,173.53,112.58979924]
[1740234972199,0.03,173.54,173.53,112.72576925]
[1740234973302,0.03,173.54,173.53,113.58976317]
[1740234973506,0.03,173.54,173.53,115.43075093]
[1740234973670,0.03,173.54,173.53,114.56675701]
[1740234977793,0.03,173.54,173.53,115.56675701]
[1740234977990,0.063,173.6,173.56,20.0]
[1740234978195,0.063,173.6,173.59,17.98396925]
[1740234978505,0.063,173.6,173.59,23.74466925]
[1740234982905,0.063,173.6,173.59,17.98396925]
[1740234983607,0.063,173.6,173.57,17.98396925]
[1740234984199,0.063,173.6,173.58,17.98396925]
[1740234985199,0.063,173.6,173.56,17.98396925]
[1740234988323,0.063,173.6,173.57,17.98396925]
[1740234990215,0.063,173.6,173.59,17.98396925]
[1740234992396,0.063,173.6,173.59,23.74466925]
[1740234996310,0.063,173.6,173.59,105.24466925]
[1740234999439,0.063,173.6,173.59,23.74466925]
[1740235002400,0.063,173.6,173.59,17.98396925]
[1740235003508,0.063,173.6,173.58,17.98396925]
[1740235004005,0.063,173.6,173.57,17.98396925]
[1740235004214,0.063,173.6,173.56,17.98396925]
[1740235005819,81.263,173.6,173.56,17.98396925]
[1740235006235,81.263,173.6,173.57,17.98396925]
[1740235007237,81.263,173.6,173.57,23.74516925]
[1740235007441,0.063,173.6,173.59,17.98396925]
[1740235009220,0.063,173.6,173.59,23.74466925]
[1740235009838,0.063,173.6,173.59,105.24466925]
[1740235013132,0.063,173.6,173.58,17.98396925]
[1740235013332,0.063,173.6,173.57,17.98396925]
[1740235014357,0.063,173.6,173.56,17.98396925]
[1740235015629,0.063,173.6,173.57,17.98396925]
[1740235020150,0.063,173.6,173.57,23.74526925]
[1740235021823,0.063,173.6,173.58,17.98396925]
[1740235022357,0.063,173.6,173.57,17.98396925]
[1740235026356,0.063,173.6,173.56,17.98396925]
[1740235026534,0.063,173.6,173.55,5.7619]
[1740235026739,0.063,173.6,173.56,11.48746186]
[1740235026941,0.063,173.6,173.57,11.48746186]
[1740235031742,0.063,173.6,173.59,11.48746186]
[1740235032662,0.063,173.6,173.59,41.62322864]
[1740235033246,0.03,173.69,173.62,20.0]
[1740235033451,0.03,173.69,173.68,17.93126432]
[1740235034545,0.03,173.69,173.68,23.68896432]
[1740235034741,0.03,173.72,173.71,20.0]
[1740235034958,0.03,173.72,173.71,37.93126432]
[1740235035968,0.03,173.72,173.71,43.68796432]
[1740235044276,0.03,173.72,173.71,37.93126432]
[1740235045769,0.03,173.72,173.71,43.68796432]
[1740235048377,0.03,173.72,173.7,81.5]
[1740235048555,0.03,173.72,173.71,17.93126432]
[1740235051463,0.03,173.72,173.67,17.93126432]
[1740235051676,1.5714,173.71,173.68,17.93126432]
[1740235052570,0.03,173.72,173.7,17.93126432]
[1740235052983,0.03,173.72,173.71,17.93126432]
[1740235053771,0.03,173.72,173.7,17.93126432]
[1740235054587,0.03,173.72,173.7,11.46879574]
[1740235055080,0.03,173.72,173.71,11.46879574]
[1740235056384,0.03,173.72,173.71,17.22549574]
[1740235062188,0.03,173.72,173.71,11.46879574]
[1740235062391,0.03,173.72,173.7,11.46879574]
[1740235062689,0.03,173.72,173.71,11.46879574]
[1740235063385,0.03,173.72,173.7,11.46879574]
[1740235064287,1.6014,173.72,173.69,0.063]
[1740235066889,7.3579,173.72,173.69,0.063]
[1740235067089,1.6014,173.72,173.69,0.063]
[1740235067689,1.6014,173.72,173.71,11.46879574]
[1740235067883,0.03,173.72,173.71,11.46879574]
[1740235069687,0.03,173.72,173.69,0.063]
[1740235069894,0.03,173.72,173.7,11.46879574]
[1740235072592,0.03,173.72,173.69,11.53179574]
[1740235073089,0.03,173.72,173.69,0.063]
[1740235075492,0.03,173.72,173.69,11.53179574]
[1740235075793,0.03,173.72,173.69,0.063]
[1740235075992,0.03,173.72,173.69,11.53179574]
[1740235078794,0.03,173.72,173.69,17.28909574]
[1740235078994,0.03,173.72,173.69,0.063]
[1740235087995,0.03,173.72,173.71,11.46879574]
[1740235088381,0.03,173.72,173.7,11.46879574]
[1740235090506,0.03,173.72,173.7,17.22569574]
[1740235093390,0.03,173.72,173.71,11.46879574]
[1740235095009,0.03,173.72,173.71,17.22549574]
[1740235096213,0.03,173.72,173.69,11.53179574]
[1740235096408,0.03,173.72,173.69,0.063]
[1740235103512,81.23,173.72,173.69,0.063]
[1740235104104,86.9864,173.72,173.69,0.063]
[1740235105109,92.66879574,173.71,173.69,0.063]
[1740235105309,98.42549574,173.71,173.69,0.063]
[1740235107725,11.46879574,173.7,173.69,0.063]
[1740235109338,80.46879574,173.7,173.69,0.063]
[1740235110035,86.22579574,173.7,173.69,0.063]
[1740235110535,69.0,173.7,173.69,0.063]
[1740235113435,0.03,173.72,173.69,0.063]
[1740235113613,0.03,173.72,173.71,11.46879574]
[1740235114509,0.03,173.72,173.71,17.22549574]
[1740235117341,0.03,173.75,173.74,11.46879574]
[1740235118339,0.03,173.75,173.72,11.46879574]
[1740235119322,0.03,173.75,173.73,5.756]
[1740235122947,0.03,173.75,173.71,11.46879574]
[1740235123242,0.03,173.75,173.72,5.7563]
[1740235123825,0.03,173.75,173.72,17.22509574]
[1740235125449,0.03,173.75,173.73,11.46879574]
[1740235126766,0.03,173.75,173.74,5.7557]
[1740235127567,0.03,173.75,173.71,11.46879574]
[1740235127851,0.03,173.75,173.71,5.7567]
[1740235129652,0.03,173.75,173.71,17.22549574]
[1740235130326,0.03,173.75,173.72,11.46879574]
[1740235130530,0.03,173.75,173.73,5.756]
[1740235130740,0.03,173.75,173.73,17.22479574]
[1740235134053,0.03,173.75,173.72,11.46879574]
[1740235135330,0.03,173.75,173.71,25.85999574]
[1740235136451,0.03,173.75,173.71,31.61669574]
[1740235137357,0.03,173.75,173.71,17.22549574]
[1740235138461,0.03,173.75,173.72,11.46879574]
[1740235138639,0.03,173.75,173.73,11.46879574]
[1740235138954,0.03,173.75,173.72,11.46879574]
[1740235139851,0.03,173.75,173.73,5.756]
[1740235140252,0.03,173.75,173.73,17.22479574]
[1740235141137,0.03,173.75,173.74,11.46879574]
[1740235141340,0.03,173.75,173.74,30.1184446]
[1740235141642,0.0001,173.75,173.74,111.6184446]
[1740235143361,0.0001,173.75,173.74,117.3741446]
[1740235144355,0.0001,173.75,173.74,92.96879574]
[1740235144561,0.0001,173.75,173.72,4.24]
[1740235144864,0.0001,173.75,173.71,11.46879574]
[1740235145068,0.0001,173.75,173.72,5.7563]
[1740235145270,0.0001,173.75,173.7,11.46879574]
[1740235146147,0.0001,173.75,173.71,0.063]
[1740235147137,11.46879574,173.74,173.71,0.063]
[1740235147343,11.46889574,173.75,173.71,0.063]
[1740235147560,0.0001,173.75,173.71,0.063]
[1740235147758,81.2,173.74,173.71,0.063]
[1740235148064,92.66879574,173.73,173.71,0.063]
[1740235149166,81.2,173.73,173.71,0.063]
[1740235149861,81.2,173.73,173.71,11.53179574]
[1740235150653,81.2,173.73,173.71,17.28829574]
[1740235150971,0.0001,173.75,173.71,17.28829574]
[1740235152650,0.0001,173.75,173.71,0.063]
[1740235152983,11.46889574,173.75,173.71,0.063]
[1740235153481,11.46879574,173.74,173.71,0.063]
[1740235154173,11.46879574,173.73,173.71,0.063]
[1740235154887,17.22479574,173.73,173.71,0.063]
[1740235156155,0.0001,173.75,173.71,0.063]
[1740235156156,98.42509574,173.72,173.71,0.063]
[1740235156352,17.22509574,173.72,173.71,0.063]
[1740235156558,18.83859574,173.72,173.71,0.063]
[1740235159588,1.6135,173.72,173.71,0.063]
[1740235159958,13.08229574,173.72,173.71,0.063]
[1740235160155,18.83859574,173.72,173.71,0.063]
[1740235160776,38.83859574,173.72,173.71,0.063]
[1740235161566,57.4882446,173.72,173.71,0.063]
[1740235164181,37.4882446,173.72,173.71,0.063]
[1740235164797,38.64964886,173.7,173.69,0.063]
[1740235164969,95.99362756,173.7,173.69,0.063]
[1740235165368,101.75062756,173.7,173.69,0.063]
[1740235165897,102.75062756,173.7,173.69,0.063]
[1740235166066,101.75062756,173.7,173.69,0.063]
[1740235166462,55.8754446,173.7,173.69,0.063]
[1740235169878,102.75062756,173.7,173.69,0.063]
[1740235170192,20.0,173.66,173.58,5.7609]
[1740235170367,11.46879574,173.63,173.58,5.7609]
[1740235170572,11.46879574,173.63,173.57,5.7612]
[1740235170799,11.46879574,173.62,173.56,5.7616]
[1740235170983,11.46879574,173.61,173.54,6.7001]
[1740235171985,11.46879574,173.61,173.54,12.4621]
[1740235172774,11.46879574,173.6,173.54,0.063]
[1740235173298,11.46879574,173.6,173.54,5.8253]
[1740235173798,81.2,173.59,173.54,0.063]
[1740235174275,92.66879574,173.58,173.54,0.063]
[1740235175099,81.2,173.57,173.54,0.063]
[1740235175763,81.2,173.56,173.54,0.063]
[1740235178976,81.2,173.56,173.54,11.53179574]
[1740235179292,81.2,173.56,173.55,11.46879574]
[1740235180289,81.2,173.62,173.55,11.46879574]
[1740235180493,81.2,173.62,173.59,11.46879574]
[1740235180698,81.2,173.64,173.6,11.46879574]
[1740235180883,81.2,173.64,173.61,5.76]
[1740235181892,81.2,173.64,173.6,5.7603]
[1740235183396,92.66879574,173.64,173.58,5.7607]
[1740235183693,11.46879574,173.63,173.57,5.7613]
[1740235183898,81.2,173.62,173.56,17.23029574]
[1740235184899,81.2,173.62,173.57,11.46879574]
[1740235185898,81.2,173.62,173.57,17.22999574]
[1740235188298,81.2,173.62,173.57,5.7612]
[1740235188790,98.42869574,173.62,173.54,17.29379574]
[1740235188982,92.66879574,173.61,173.54,17.29379574]
[1740235190198,98.42879574,173.61,173.54,17.29379574]
[1740235190403,92.66879574,173.61,173.54,17.29379574]
[1740235190702,98.42879574,173.61,173.54,17.29379574]
[1740235192102,92.66879574,173.61,173.54,17.29379574]
[1740235192403,81.2,173.61,173.56,11.46879574]
[1740235193404,81.2,173.61,173.57,11.46879574]
[1740235193703,81.2,173.61,173.57,17.22979574]
[1740235194309,81.2,173.61,173.58,11.46879574]
[1740235194605,4.24,173.62,173.58,11.46879574]
[1740235194806,81.2,173.63,173.58,11.46879574]
[1740235195594,81.2,173.63,173.59,11.46879574]
[1740235195796,81.2,173.63,173.6,11.46879574]
[1740235196305,81.2,173.63,173.61,11.46879574]
[1740235197019,81.2,173.63,173.6,11.46879574]
[1740235197601,4.24,173.66,173.6,11.46879574]
[1740235197907,81.2,173.65,173.6,11.46879574]
[1740235199187,81.2,173.65,173.61,5.76]
[1740235204292,81.2,173.65,173.64,11.46879574]
[1740235204496,69.0,173.68,173.64,11.46879574]
[1740235204497,81.2,173.68,173.64,11.46879574]
[1740235206912,81.2,173.68,173.64,17.22769574]
[1740235207109,81.2,173.68,173.64,11.46879574]
[1740235207687,81.2,173.68,173.64,17.22769574]
[1740235209606,81.2,173.68,173.66,11.46879574]
[1740235209990,81.2,173.68,173.67,11.46879574]
[1740235210396,0.03,173.69,173.67,11.46879574]
[1740235210806,0.03,173.69,173.68,11.46879574]
[1740235211490,0.03,173.69,173.68,17.22649574]
[1740235212413,0.03,173.69,173.68,11.46879574]
[1740235213391,0.03,173.69,173.67,11.46879574]
[1740235214409,0.03,173.69,173.67,17.22669574]
[1740235215321,0.03,173.69,173.68,11.46879574]
[1740235215509,0.03,173.69,173.68,17.22649574]
[1740235217229,0.03,173.69,173.68,11.46879574]
[1740235217408,0.03,173.69,173.65,17.22749574]
[1740235217615,0.03,173.69,173.67,11.46879574]
[1740235217812,0.03,173.69,173.68,11.46879574]
[1740235218212,0.03,173.69,173.65,5.7587]
[1740235218410,0.03,173.69,173.66,11.46879574]
[1740235218606,0.03,173.69,173.65,17.22749574]
[1740235218831,0.03,173.69,173.63,17.22809574]
[1740235219931,0.03,173.69,173.64,11.46879574]
[1740235221945,0.03,173.69,173.64,17.22769574]
[1740235225922,6.1352,173.69,173.64,11.46879574]
[1740235226236,6.1352,173.69,173.63,11.46879574]
[1740235228120,92.66879574,173.68,173.61,5.8227]
[1740235228333,92.66879574,173.68,173.61,17.29149574]
[1740235228827,92.66879574,173.68,173.64,0.063]
[1740235229027,81.2,173.67,173.64,0.063]